[Event "January 2 Late 2024"]
[Site "https://www.chess.com"]
[Date "2024.01.02"]
[Round "1"]
[White "Gonzalez Zharikov, Andrey"]
[Black "Poltorak, Sebastian"]
[Result "0-1"]
[Board "172"]
[TimeControl "180+1"]
[WhiteFideId "5145287"]
[BlackFideId "1199498"]
[WhiteElo "2292"]
[BlackElo "2617"]
[WhiteTeam "MEX"]
[BlackTeam "POL"]
[WhiteClock "0:00:12"]
[BlackClock "0:00:12"]

1. e4 {[%clk 0:02:59]}  c6 {[%clk 0:01:47]} 2. Nc3 {[%clk 0:02:59]}  d5 {[%clk 0:01:47]} 3. Nf3 {[%clk 0:02:59]}  dxe4 {[%clk 0:01:47]} 4. Nxe4 {[%clk 0:02:59]}  Nf6 {[%clk 0:01:46]} 5. Nxf6+ {[%clk 0:02:59]}  exf6 {[%clk 0:01:46]} 6. Bc4 {[%clk 0:03:00]}  Bd6 {[%clk 0:01:46]} 7. Qe2+ {[%clk 0:03:00]}  Qe7 {[%clk 0:01:46]} 8. Qxe7+ {[%clk 0:02:59]}  Kxe7 {[%clk 0:01:45]} 9. O-O {[%clk 0:03:00]}  Be6 {[%clk 0:01:40]} 10. Re1 {[%clk 0:03:00]}  Nd7 {[%clk 0:01:38]} 11. d4 {[%clk 0:02:58]}  Rhe8 {[%clk 0:01:35]} 12. Bd2 {[%clk 0:02:34]}  Nb6 {[%clk 0:01:31]} 13. Bxe6 {[%clk 0:02:33]}  fxe6 {[%clk 0:01:31]} 14. b3 {[%clk 0:02:32]}  c5 {[%clk 0:01:28]} 15. c4 {[%clk 0:02:18]}  Kf7 {[%clk 0:01:19]} 16. Be3 {[%clk 0:02:14]}  Rac8 {[%clk 0:01:13]} 17. Rad1 {[%clk 0:02:13]}  Bf8 {[%clk 0:01:02]} 18. Nd2 {[%clk 0:02:06]}  cxd4 {[%clk 0:01:01]} 19. Bxd4 {[%clk 0:02:06]}  e5 {[%clk 0:01:01]} 20. Bxb6 {[%clk 0:01:58]}  axb6 {[%clk 0:01:02]} 21. Ne4 {[%clk 0:01:59]}  Red8 {[%clk 0:01:02]} 22. Kf1 {[%clk 0:01:54]}  Bb4 {[%clk 0:01:02]} 23. Rxd8 {[%clk 0:01:43]}  Rxd8 {[%clk 0:01:03]} 24. Ra1 {[%clk 0:01:44]}  f5 {[%clk 0:00:47]} 25. a3 {[%clk 0:01:26]}  Ra8 {[%clk 0:00:41]} 26. Ng3 {[%clk 0:01:21]}  g6 {[%clk 0:00:37]} 27. a4 {[%clk 0:01:19]}  Rd8 {[%clk 0:00:37]} 28. h4 {[%clk 0:00:55]}  Rd3 {[%clk 0:00:36]} 29. Rb1 {[%clk 0:00:54]}  Ke6 {[%clk 0:00:36]} 30. Ke2 {[%clk 0:00:55]}  Rd2+ {[%clk 0:00:35]} 31. Kf1 {[%clk 0:00:55]}  h6 {[%clk 0:00:32]} 32. Ne2 {[%clk 0:00:49]}  g5 {[%clk 0:00:29]} 33. hxg5 {[%clk 0:00:49]}  hxg5 {[%clk 0:00:30]} 34. g3 {[%clk 0:00:42]}  e4 {[%clk 0:00:29]} 35. Ng1 {[%clk 0:00:35]}  f4 {[%clk 0:00:28]} 36. Re1 {[%clk 0:00:34]}  Kf5 {[%clk 0:00:27]} 37. g4+ {[%clk 0:00:22]}  Kxg4 {[%clk 0:00:22]} 38. Rxe4 {[%clk 0:00:22]}  Bc5 {[%clk 0:00:18]} 39. Re2 {[%clk 0:00:20]}  Rd3 {[%clk 0:00:15]} 40. f3+ {[%clk 0:00:20]}  Kf5 {[%clk 0:00:14]} 41. Rb2 {[%clk 0:00:18]}  Bxg1 {[%clk 0:00:13]} 42. Kxg1 {[%clk 0:00:18]}  Rxf3 {[%clk 0:00:14]} 43. Kg2 {[%clk 0:00:12]}  Rc3 {[%clk 0:00:12]} 0-1

[Event "January 2 Late 2024"]
[Site "https://www.chess.com"]
[Date "2024.01.02"]
[Round "1"]
[White "Denishev, Marat"]
[Black "Rodriguez Avila, Alvaro"]
[Result "1/2-1/2"]
[Board "175"]
[TimeControl "180+1"]
[WhiteFideId "24131563"]
[BlackFideId "24570249"]
[WhiteElo "2616"]
[BlackElo "2286"]
[WhiteTeam "FID"]
[BlackTeam "ESP"]
[WhiteClock "0:00:21"]
[BlackClock "0:00:06"]

1. d4 {[%clk 0:03:00]}  Nf6 {[%clk 0:02:59]} 2. Nf3 {[%clk 0:03:00]}  d5 {[%clk 0:02:59]} 3. Bg5 {[%clk 0:03:00]}  Ne4 {[%clk 0:02:59]} 4. Bf4 {[%clk 0:03:00]}  c5 {[%clk 0:02:58]} 5. c3 {[%clk 0:02:58]}  Qb6 {[%clk 0:02:57]} 6. Qb3 {[%clk 0:02:58]}  Nc6 {[%clk 0:02:49]} 7. Nbd2 {[%clk 0:02:54]}  Nxd2 {[%clk 0:02:47]} 8. Bxd2 {[%clk 0:02:54]}  Qxb3 {[%clk 0:02:41]} 9. axb3 {[%clk 0:02:54]}  cxd4 {[%clk 0:02:35]} 10. Nxd4 {[%clk 0:02:55]}  Nxd4 {[%clk 0:02:33]} 11. cxd4 {[%clk 0:02:56]}  e6 {[%clk 0:02:30]} 12. e3 {[%clk 0:02:56]}  Bd7 {[%clk 0:02:30]} 13. Bd3 {[%clk 0:02:55]}  Bd6 {[%clk 0:02:30]} 14. Ke2 {[%clk 0:02:56]}  Ke7 {[%clk 0:02:28]} 15. Ra5 {[%clk 0:02:52]}  a6 {[%clk 0:02:21]} 16. b4 {[%clk 0:02:53]}  Bc7 {[%clk 0:02:12]} 17. Rc5 {[%clk 0:02:49]}  Bb6 {[%clk 0:02:13]} 18. Rc2 {[%clk 0:02:49]}  Rac8 {[%clk 0:02:10]} 19. Rhc1 {[%clk 0:02:49]}  Rxc2 {[%clk 0:02:09]} 20. Rxc2 {[%clk 0:02:50]}  Rc8 {[%clk 0:02:09]} 21. Rxc8 {[%clk 0:02:45]}  Bxc8 {[%clk 0:02:10]} 22. b5 {[%clk 0:02:46]}  axb5 {[%clk 0:02:09]} 23. Bxb5 {[%clk 0:02:47]}  Bd7 {[%clk 0:02:10]} 24. Bd3 {[%clk 0:02:45]}  h6 {[%clk 0:01:54]} 25. g4 {[%clk 0:02:44]}  Bc7 {[%clk 0:01:47]} 26. h4 {[%clk 0:02:42]}  Bd6 {[%clk 0:01:48]} 27. f4 {[%clk 0:02:40]}  f6 {[%clk 0:01:44]} 28. Ba5 {[%clk 0:02:34]}  Bc6 {[%clk 0:01:36]} 29. Bb6 {[%clk 0:02:31]}  Kd7 {[%clk 0:01:35]} 30. Ba5 {[%clk 0:02:22]}  Ke7 {[%clk 0:01:35]} 31. h5 {[%clk 0:02:21]}  e5 {[%clk 0:01:31]} 32. dxe5 {[%clk 0:01:55]}  fxe5 {[%clk 0:01:30]} 33. f5 {[%clk 0:01:41]}  e4 {[%clk 0:01:15]} 34. Bc2 {[%clk 0:01:41]}  Be5 {[%clk 0:01:15]} 35. b3 {[%clk 0:01:35]}  Kf6 {[%clk 0:01:10]} 36. Bd8+ {[%clk 0:01:34]}  Kf7 {[%clk 0:01:10]} 37. Kf2 {[%clk 0:01:27]}  Bd6 {[%clk 0:00:49]} 38. Bh4 {[%clk 0:01:24]}  Be5 {[%clk 0:00:48]} 39. Bg3 {[%clk 0:01:19]}  Bc3 {[%clk 0:00:36]} 40. Bf4 {[%clk 0:01:17]}  Bf6 {[%clk 0:00:35]} 41. Bd6 {[%clk 0:01:06]}  Bc3 {[%clk 0:00:35]} 42. Kg3 {[%clk 0:01:05]}  Bd2 {[%clk 0:00:24]} 43. Kf4 {[%clk 0:01:01]}  d4 {[%clk 0:00:24]} 44. Bc5 {[%clk 0:00:27]}  Bxe3+ {[%clk 0:00:17]} 45. Ke5 {[%clk 0:00:27]}  d3 {[%clk 0:00:12]} 46. Bxe3 {[%clk 0:00:22]}  dxc2 {[%clk 0:00:13]} 47. b4 {[%clk 0:00:22]}  Ba4 {[%clk 0:00:12]} 48. Kxe4 {[%clk 0:00:20]}  Bc6+ {[%clk 0:00:11]} 49. Kf4 {[%clk 0:00:20]}  Kf6 {[%clk 0:00:10]} 50. Bd4+ {[%clk 0:00:19]}  Kf7 {[%clk 0:00:10]} 51. Bb2 {[%clk 0:00:20]}  Bb5 {[%clk 0:00:09]} 52. g5 {[%clk 0:00:19]}  hxg5+ {[%clk 0:00:09]} 53. Kxg5 {[%clk 0:00:20]}  Bd3 {[%clk 0:00:08]} 54. Bc1 {[%clk 0:00:17]}  Be4 {[%clk 0:00:04]} 55. Bd2 {[%clk 0:00:17]}  Bd3 {[%clk 0:00:05]} 56. Kf4 {[%clk 0:00:18]}  Be2 {[%clk 0:00:05]} 57. Ke3 {[%clk 0:00:14]}  Bxh5 {[%clk 0:00:05]} 58. Kd3 {[%clk 0:00:15]}  Bd1 {[%clk 0:00:04]} 59. Ke4 {[%clk 0:00:13]}  Be2 {[%clk 0:00:04]} 60. Kf4 {[%clk 0:00:14]}  Bd1 {[%clk 0:00:04]} 61. Bc1 {[%clk 0:00:15]}  g6 {[%clk 0:00:04]} 62. Bd2 {[%clk 0:00:16]}  gxf5 {[%clk 0:00:04]} 63. Kxf5 {[%clk 0:00:17]}  Ke7 {[%clk 0:00:05]} 64. Ke4 {[%clk 0:00:17]}  Kd6 {[%clk 0:00:04]} 65. Kd4 {[%clk 0:00:18]}  Kc6 {[%clk 0:00:04]} 66. Kc3 {[%clk 0:00:18]}  Kb5 {[%clk 0:00:05]} 67. Bc1 {[%clk 0:00:18]}  Ka4 {[%clk 0:00:04]} 68. Bb2 {[%clk 0:00:18]}  b5 {[%clk 0:00:04]} 69. Bc1 {[%clk 0:00:18]}  Be2 {[%clk 0:00:03]} 70. Kxc2 {[%clk 0:00:18]}  Bc4 {[%clk 0:00:04]} 71. Kc3 {[%clk 0:00:17]}  Bf1 {[%clk 0:00:04]} 72. Be3 {[%clk 0:00:18]}  Bc4 {[%clk 0:00:04]} 73. Bd2 {[%clk 0:00:19]}  Bf1 {[%clk 0:00:05]} 74. Be3 {[%clk 0:00:19]}  Bc4 {[%clk 0:00:05]} 75. Bd2 {[%clk 0:00:20]}  Bf1 {[%clk 0:00:06]} 76. Be3 {[%clk 0:00:21]} 1/2-1/2

[Event "January 2 Late 2024"]
[Site "https://www.chess.com"]
[Date "2024.01.02"]
[Round "1"]
[White "Osmonbekov, Talaibek"]
[Black "Srinath, Rao S.V."]
[Result "1-0"]
[Board "176"]
[TimeControl "180+1"]
[WhiteFideId "2017253"]
[BlackFideId "5028876"]
[WhiteElo "2278"]
[BlackElo "2614"]
[WhiteTeam "USA"]
[BlackTeam "IND"]
[WhiteClock "0:01:19"]
[BlackClock "0:02:16"]

1. d4 {[%clk 0:02:02]}  Nf6 {[%clk 0:02:57]} 2. Nc3 {[%clk 0:02:01]}  e6 {[%clk 0:02:56]} 3. e4 {[%clk 0:01:59]}  d5 {[%clk 0:02:56]} 4. e5 {[%clk 0:01:59]}  Nfd7 {[%clk 0:02:57]} 5. Nce2 {[%clk 0:01:59]}  c5 {[%clk 0:02:57]} 6. c3 {[%clk 0:02:00]}  Nc6 {[%clk 0:02:56]} 7. f4 {[%clk 0:02:00]}  b5 {[%clk 0:02:50]} 8. Nf3 {[%clk 0:01:59]}  b4 {[%clk 0:02:50]} 9. g3 {[%clk 0:01:40]}  bxc3 {[%clk 0:02:50]} 10. bxc3 {[%clk 0:01:39]}  cxd4 {[%clk 0:02:50]} 11. cxd4 {[%clk 0:01:40]}  Bb4+ {[%clk 0:02:50]} 12. Kf2 {[%clk 0:01:40]}  f6 {[%clk 0:02:51]} 13. Bh3 {[%clk 0:01:38]}  fxe5 {[%clk 0:02:50]} 14. dxe5 {[%clk 0:01:38]}  Qb6+ {[%clk 0:02:49]} 15. Kg2 {[%clk 0:01:38]}  Nc5 {[%clk 0:02:43]} 16. Be3 {[%clk 0:01:29]}  Qa6 {[%clk 0:02:36]} 17. a3 {[%clk 0:01:24]}  Bxa3 {[%clk 0:02:27]} 18. Bxc5 {[%clk 0:01:23]}  Bxc5 {[%clk 0:02:22]} 19. Rxa6 {[%clk 0:01:20]}  Bxa6 {[%clk 0:02:22]} 20. Qa4 {[%clk 0:01:19]}  Bb7 {[%clk 0:02:16]} 21. Rc1 {[%clk 0:01:19]} 1-0

[Event "January 2 Late 2024"]
[Site "https://www.chess.com"]
[Date "2024.01.02"]
[Round "1"]
[White "rumo_a_3200"]
[Black "Dilanyan, Grigor"]
[Result "1-0"]
[Board "180"]
[TimeControl "180+1"]
[BlackFideId "13303570"]
[WhiteElo "2273"]
[BlackElo "2606"]
[BlackTeam "ARM"]
[WhiteClock "0:00:12"]
[BlackClock "0:01:14"]

1. e4 {[%clk 0:02:56]}  e5 {[%clk 0:02:56]} 2. Nf3 {[%clk 0:02:55]}  Nc6 {[%clk 0:02:57]} 3. d4 {[%clk 0:02:52]}  exd4 {[%clk 0:02:54]} 4. Bc4 {[%clk 0:02:52]}  Nf6 {[%clk 0:02:53]} 5. e5 {[%clk 0:02:52]}  d5 {[%clk 0:02:54]} 6. Bb5 {[%clk 0:02:52]}  Ne4 {[%clk 0:02:54]} 7. Nxd4 {[%clk 0:02:53]}  Bc5 {[%clk 0:02:54]} 8. Be3 {[%clk 0:02:50]}  O-O {[%clk 0:02:46]} 9. Nxc6 {[%clk 0:02:50]}  bxc6 {[%clk 0:02:46]} 10. Bxc5 {[%clk 0:02:50]}  Nxc5 {[%clk 0:02:46]} 11. Bxc6 {[%clk 0:02:51]}  Rb8 {[%clk 0:02:45]} 12. Qxd5 {[%clk 0:02:52]}  Qxd5 {[%clk 0:02:44]} 13. Bxd5 {[%clk 0:02:53]}  Rxb2 {[%clk 0:02:44]} 14. Na3 {[%clk 0:02:16]}  Ba6 {[%clk 0:02:34]} 15. O-O-O {[%clk 0:01:25]}  Rb6 {[%clk 0:02:22]} 16. Nc4 {[%clk 0:01:20]}  Rb4 {[%clk 0:02:20]} 17. Ne3 {[%clk 0:00:57]}  Rfb8 {[%clk 0:02:19]} 18. Bb3 {[%clk 0:00:57]}  Re4 {[%clk 0:02:11]} 19. Rd5 {[%clk 0:00:53]}  Ne6 {[%clk 0:02:00]} 20. Rhd1 {[%clk 0:00:40]}  g6 {[%clk 0:01:54]} 21. Ra5 {[%clk 0:00:35]}  Be2 {[%clk 0:01:40]} 22. Rd2 {[%clk 0:00:32]}  Bb5 {[%clk 0:01:40]} 23. Rxa7 {[%clk 0:00:25]}  Rxe5 {[%clk 0:01:40]} 24. Bxe6 {[%clk 0:00:24]}  Rxe6 {[%clk 0:01:41]} 25. Rxc7 {[%clk 0:00:24]}  Ra6 {[%clk 0:01:39]} 26. c4 {[%clk 0:00:23]}  Ba4 {[%clk 0:01:32]} 27. Rb2 {[%clk 0:00:23]}  Rd8 {[%clk 0:01:31]} 28. Nd5 {[%clk 0:00:24]}  Re6 {[%clk 0:01:29]} 29. Kd2 {[%clk 0:00:22]}  Bc6 {[%clk 0:01:23]} 30. Kc3 {[%clk 0:00:14]}  Bxd5 {[%clk 0:01:22]} 31. cxd5 {[%clk 0:00:15]}  Rxd5 {[%clk 0:01:23]} 32. Rc8+ {[%clk 0:00:16]}  Kg7 {[%clk 0:01:23]} 33. Rc7 {[%clk 0:00:16]}  Ra5 {[%clk 0:01:18]} 34. Rc4 {[%clk 0:00:13]}  Ra3+ {[%clk 0:01:16]} 35. Kd2 {[%clk 0:00:11]}  Rea6 {[%clk 0:01:12]} 36. Rcc2 {[%clk 0:00:10]}  h5 {[%clk 0:01:12]} 37. Rb3 {[%clk 0:00:09]}  Rxa2 {[%clk 0:01:12]} 38. Rxa2 {[%clk 0:00:10]}  Rxa2+ {[%clk 0:01:13]} 39. Ke3 {[%clk 0:00:10]}  Ra6 {[%clk 0:01:12]} 40. Rd3 {[%clk 0:00:10]}  Kf6 {[%clk 0:01:12]} 41. Kf3 {[%clk 0:00:10]}  Ra5 {[%clk 0:01:11]} 42. Rb3 {[%clk 0:00:10]}  Ke6 {[%clk 0:01:10]} 43. Rb6+ {[%clk 0:00:09]}  Kf5 {[%clk 0:01:10]} 44. g3 {[%clk 0:00:09]}  f6 {[%clk 0:01:09]} 45. Kg2 {[%clk 0:00:10]}  g5 {[%clk 0:01:09]} 46. Kf3 {[%clk 0:00:10]}  g4+ {[%clk 0:01:07]} 47. Kg2 {[%clk 0:00:10]}  Kg5 {[%clk 0:01:08]} 48. Rb4 {[%clk 0:00:10]}  f5 {[%clk 0:01:08]} 49. h4+ {[%clk 0:00:10]}  gxh3+ {[%clk 0:01:06]} 50. Kxh3 {[%clk 0:00:10]}  Ra2 {[%clk 0:01:07]} 51. Kg2 {[%clk 0:00:10]}  Rc2 {[%clk 0:01:08]} 52. Rf4 {[%clk 0:00:10]}  Rc5 {[%clk 0:01:08]} 53. Rh4 {[%clk 0:00:11]}  Re5 {[%clk 0:01:08]} 54. f4+ {[%clk 0:00:10]}  Kf6 {[%clk 0:01:06]} 55. fxe5+ {[%clk 0:00:11]}  Kxe5 {[%clk 0:01:07]} 56. Rxh5 {[%clk 0:00:12]}  Kf6 {[%clk 0:01:08]} 57. Kf3 {[%clk 0:00:12]}  Kg6 {[%clk 0:01:09]} 58. Rh4 {[%clk 0:00:12]}  Kg5 {[%clk 0:01:09]} 59. Rf4 {[%clk 0:00:12]}  Kf6 {[%clk 0:01:09]} 60. Ra4 {[%clk 0:00:12]}  Kg5 {[%clk 0:01:10]} 61. Ra5 {[%clk 0:00:12]}  Kg6 {[%clk 0:01:10]} 62. Kf4 {[%clk 0:00:13]}  Kh6 {[%clk 0:01:10]} 63. Rxf5 {[%clk 0:00:13]}  Kg6 {[%clk 0:01:11]} 64. g4 {[%clk 0:00:13]}  Kh6 {[%clk 0:01:11]} 65. Rf6+ {[%clk 0:00:12]}  Kg7 {[%clk 0:01:11]} 66. Kf5 {[%clk 0:00:13]}  Kh7 {[%clk 0:01:12]} 67. g5 {[%clk 0:00:12]}  Kg8 {[%clk 0:01:12]} 68. g6 {[%clk 0:00:13]}  Kg7 {[%clk 0:01:12]} 69. Rf7+ {[%clk 0:00:13]}  Kg8 {[%clk 0:01:13]} 70. Ra7 {[%clk 0:00:12]}  Kf8 {[%clk 0:01:13]} 71. Kf6 {[%clk 0:00:12]}  Kg8 {[%clk 0:01:14]} 72. Ra8# {[%clk 0:00:12]} 1-0

[Event "January 2 Late 2024"]
[Site "https://www.chess.com"]
[Date "2024.01.02"]
[Round "1"]
[White "Melian, Juan Sebastian"]
[Black "Souza, Adwilhans Luciano"]
[Result "1/2-1/2"]
[Board "181"]
[TimeControl "180+1"]
[WhiteFideId "3706575"]
[BlackFideId "2101793"]
[WhiteElo "2604"]
[BlackElo "2271"]
[WhiteTeam "PAR"]
[BlackTeam "BRA"]
[WhiteClock "0:00:03"]
[BlackClock "0:00:06"]

1. e4 {[%clk 0:02:59]}  e5 {[%clk 0:02:59]} 2. Bc4 {[%clk 0:02:59]}  Nc6 {[%clk 0:02:58]} 3. d3 {[%clk 0:02:57]}  Na5 {[%clk 0:02:45]} 4. Ne2 {[%clk 0:02:48]}  Nf6 {[%clk 0:02:44]} 5. O-O {[%clk 0:02:44]}  d6 {[%clk 0:02:37]} 6. Nbc3 {[%clk 0:02:42]}  Be7 {[%clk 0:02:35]} 7. a4 {[%clk 0:02:41]}  Nxc4 {[%clk 0:02:34]} 8. dxc4 {[%clk 0:02:42]}  O-O {[%clk 0:02:32]} 9. Qd3 {[%clk 0:02:42]}  Nh5 {[%clk 0:02:28]} 10. Ng3 {[%clk 0:02:37]}  Nf4 {[%clk 0:02:25]} 11. Qf3 {[%clk 0:02:14]}  Bg5 {[%clk 0:02:17]} 12. Nce2 {[%clk 0:01:59]}  Nxe2+ {[%clk 0:02:15]} 13. Qxe2 {[%clk 0:01:59]}  Bxc1 {[%clk 0:02:15]} 14. Raxc1 {[%clk 0:01:59]}  a5 {[%clk 0:02:14]} 15. Rcd1 {[%clk 0:01:56]}  b6 {[%clk 0:02:13]} 16. b3 {[%clk 0:01:48]}  f5 {[%clk 0:02:11]} 17. exf5 {[%clk 0:01:30]}  Bxf5 {[%clk 0:02:10]} 18. f4 {[%clk 0:01:30]}  exf4 {[%clk 0:02:01]} 19. Rxf4 {[%clk 0:01:31]}  Bg6 {[%clk 0:01:58]} 20. Rxf8+ {[%clk 0:01:15]}  Qxf8 {[%clk 0:01:56]} 21. Rf1 {[%clk 0:01:16]}  Qe8 {[%clk 0:01:55]} 22. Qd2 {[%clk 0:01:05]}  Qe5 {[%clk 0:01:42]} 23. Re1 {[%clk 0:01:00]}  Qc5+ {[%clk 0:01:41]} 24. Kh1 {[%clk 0:01:00]}  Rf8 {[%clk 0:01:40]} 25. Rf1 {[%clk 0:00:57]}  Rxf1+ {[%clk 0:01:38]} 26. Nxf1 {[%clk 0:00:58]}  Qe5 {[%clk 0:01:33]} 27. Kg1 {[%clk 0:00:52]}  Kf7 {[%clk 0:01:28]} 28. Ne3 {[%clk 0:00:48]}  c6 {[%clk 0:01:15]} 29. h3 {[%clk 0:00:42]}  Ke6 {[%clk 0:01:11]} 30. Ng4 {[%clk 0:00:24]}  Qe4 {[%clk 0:01:05]} 31. Ne3 {[%clk 0:00:19]}  d5 {[%clk 0:00:45]} 32. cxd5+ {[%clk 0:00:16]}  cxd5 {[%clk 0:00:45]} 33. Kf2 {[%clk 0:00:11]}  Kd6 {[%clk 0:00:31]} 34. c3 {[%clk 0:00:09]}  Kc5 {[%clk 0:00:25]} 35. b4+ {[%clk 0:00:08]}  Kc6 {[%clk 0:00:18]} 36. bxa5 {[%clk 0:00:05]}  bxa5 {[%clk 0:00:18]} 37. g3 {[%clk 0:00:04]}  Qd3 {[%clk 0:00:14]} 38. Qb2 {[%clk 0:00:02]}  Be4 {[%clk 0:00:08]} 39. c4 {[%clk 0:00:02]}  d4 {[%clk 0:00:07]} 40. Qb5+ {[%clk 0:00:03]}  Kd6 {[%clk 0:00:06]} 41. Qb6+ {[%clk 0:00:02]}  Ke7 {[%clk 0:00:05]} 42. Qc7+ {[%clk 0:00:02]}  Ke6 {[%clk 0:00:05]} 43. Qb6+ {[%clk 0:00:02]}  Ke7 {[%clk 0:00:05]} 44. Qc7+ {[%clk 0:00:02]}  Ke6 {[%clk 0:00:06]} 45. Qc8+ {[%clk 0:00:03]}  Ke7 {[%clk 0:00:06]} 46. Qc7+ {[%clk 0:00:03]} 1/2-1/2

[Event "January 2 Late 2024"]
[Site "https://www.chess.com"]
[Date "2024.01.02"]
[Round "1"]
[White "Grycel, Kamil"]
[Black "Dylag, Emilia"]
[Result "0-1"]
[Board "187"]
[TimeControl "180+1"]
[WhiteFideId "1115499"]
[BlackFideId "21805172"]
[WhiteElo "2595"]
[BlackElo "2261"]
[WhiteTeam "POL"]
[BlackTeam "POL"]
[WhiteClock "0:00:31"]
[BlackClock "0:00:10"]

1. d4 {[%clk 0:02:57]}  Nf6 {[%clk 0:02:53]} 2. Nf3 {[%clk 0:02:56]}  e6 {[%clk 0:02:53]} 3. Bf4 {[%clk 0:02:56]}  d5 {[%clk 0:02:47]} 4. e3 {[%clk 0:02:56]}  c5 {[%clk 0:02:47]} 5. c3 {[%clk 0:02:55]}  Bd6 {[%clk 0:02:39]} 6. Bg3 {[%clk 0:02:55]}  Qc7 {[%clk 0:02:38]} 7. Nbd2 {[%clk 0:02:55]}  Nbd7 {[%clk 0:02:38]} 8. Be2 {[%clk 0:02:54]}  b6 {[%clk 0:02:38]} 9. c4 {[%clk 0:02:49]}  Bb7 {[%clk 0:02:37]} 10. Rc1 {[%clk 0:02:48]}  O-O {[%clk 0:02:34]} 11. cxd5 {[%clk 0:02:45]}  exd5 {[%clk 0:02:30]} 12. dxc5 {[%clk 0:02:40]}  bxc5 {[%clk 0:02:29]} 13. O-O {[%clk 0:02:37]}  Bxg3 {[%clk 0:02:26]} 14. hxg3 {[%clk 0:02:37]}  Rfe8 {[%clk 0:02:10]} 15. Qa4 {[%clk 0:02:25]}  Ne4 {[%clk 0:02:04]} 16. Rfd1 {[%clk 0:02:14]}  Rab8 {[%clk 0:01:59]} 17. Qa3 {[%clk 0:01:54]}  Re6 {[%clk 0:01:40]} 18. Nxe4 {[%clk 0:01:50]}  Rxe4 {[%clk 0:01:36]} 19. Nd2 {[%clk 0:01:40]}  Ree8 {[%clk 0:01:33]} 20. Nb3 {[%clk 0:01:32]}  c4 {[%clk 0:01:10]} 21. Bf3 {[%clk 0:01:26]}  Nb6 {[%clk 0:00:50]} 22. Nd4 {[%clk 0:01:14]}  a6 {[%clk 0:00:32]} 23. Qa5 {[%clk 0:00:56]}  Na8 {[%clk 0:00:24]} 24. Qxc7 {[%clk 0:00:51]}  Nxc7 {[%clk 0:00:25]} 25. b3 {[%clk 0:00:51]}  Ne6 {[%clk 0:00:15]} 26. bxc4 {[%clk 0:00:49]}  dxc4 {[%clk 0:00:15]} 27. Nxe6 {[%clk 0:00:44]}  fxe6 {[%clk 0:00:12]} 28. Rxc4 {[%clk 0:00:39]}  Bxf3 {[%clk 0:00:11]} 29. gxf3 {[%clk 0:00:40]}  Rb2 {[%clk 0:00:11]} 30. Ra4 {[%clk 0:00:41]}  Rc8 {[%clk 0:00:10]} 31. Rxa6 {[%clk 0:00:24]}  Rcc2 {[%clk 0:00:10]} 32. Rf1 {[%clk 0:00:25]}  Kf7 {[%clk 0:00:09]} 33. a4 {[%clk 0:00:24]}  Ra2 {[%clk 0:00:09]} 34. Ra7+ {[%clk 0:00:23]}  Kf6 {[%clk 0:00:09]} 35. a5 {[%clk 0:00:21]}  Rc5 {[%clk 0:00:08]} 36. a6 {[%clk 0:00:21]}  Rc6 {[%clk 0:00:09]} 37. Rd1 {[%clk 0:00:19]}  Rcxa6 {[%clk 0:00:08]} 38. Rad7 {[%clk 0:00:15]}  Rc6 {[%clk 0:00:07]} 39. R1d2 {[%clk 0:00:15]}  Rc1+ {[%clk 0:00:07]} 40. Kg2 {[%clk 0:00:15]}  Rcc2 {[%clk 0:00:07]} 41. f4 {[%clk 0:00:15]}  Rxd2 {[%clk 0:00:07]} 42. Rxd2 {[%clk 0:00:16]}  Rxd2 {[%clk 0:00:07]} 43. Kf3 {[%clk 0:00:16]}  Rd7 {[%clk 0:00:07]} 44. g4 {[%clk 0:00:16]}  g5 {[%clk 0:00:07]} 45. fxg5+ {[%clk 0:00:16]}  Kxg5 {[%clk 0:00:08]} 46. Kg3 {[%clk 0:00:17]}  Kg6 {[%clk 0:00:08]} 47. f4 {[%clk 0:00:18]}  h5 {[%clk 0:00:08]} 48. Kf3 {[%clk 0:00:19]}  hxg4+ {[%clk 0:00:07]} 49. Kxg4 {[%clk 0:00:20]}  Kf6 {[%clk 0:00:07]} 50. Kf3 {[%clk 0:00:20]}  e5 {[%clk 0:00:08]} 51. Ke4 {[%clk 0:00:21]}  exf4 {[%clk 0:00:08]} 52. exf4 {[%clk 0:00:22]}  Ra7 {[%clk 0:00:08]} 53. Kf3 {[%clk 0:00:23]}  Ra4 {[%clk 0:00:08]} 54. Kg4 {[%clk 0:00:24]}  Ra5 {[%clk 0:00:08]} 55. Kg3 {[%clk 0:00:24]}  Kf5 {[%clk 0:00:09]} 56. Kf3 {[%clk 0:00:25]}  Ra3+ {[%clk 0:00:09]} 57. Kf2 {[%clk 0:00:25]}  Kxf4 {[%clk 0:00:09]} 58. Ke1 {[%clk 0:00:26]}  Ra2 {[%clk 0:00:09]} 59. Kd1 {[%clk 0:00:26]}  Ke3 {[%clk 0:00:09]} 60. Kc1 {[%clk 0:00:27]}  Kd3 {[%clk 0:00:10]} 61. Kb1 {[%clk 0:00:28]}  Rh2 {[%clk 0:00:10]} 62. Kc1 {[%clk 0:00:29]}  Rg2 {[%clk 0:00:09]} 63. Kb1 {[%clk 0:00:29]}  Kc3 {[%clk 0:00:09]} 64. Ka1 {[%clk 0:00:30]}  Kb3 {[%clk 0:00:10]} 65. Kb1 {[%clk 0:00:31]}  Rg1# {[%clk 0:00:10]} 0-1

[Event "January 2 Late 2024"]
[Site "https://www.chess.com"]
[Date "2024.01.02"]
[Round "1"]
[White "Gubajdullin, Alexei"]
[Black "Fernandez Madrid, Carlos"]
[Result "1-0"]
[Board "189"]
[TimeControl "180+1"]
[WhiteFideId "4141202"]
[BlackFideId "2206030"]
[WhiteElo "2588"]
[BlackElo "2256"]
[WhiteTeam "RUS"]
[BlackTeam "ESP"]
[WhiteClock "0:00:49"]
[BlackClock "0:01:30"]

1. e4 {[%clk 0:02:55]}  g6 {[%clk 0:02:59]} 2. d4 {[%clk 0:02:51]}  Bg7 {[%clk 0:03:00]} 3. Nc3 {[%clk 0:02:49]}  d6 {[%clk 0:03:00]} 4. Be3 {[%clk 0:02:48]}  a6 {[%clk 0:03:00]} 5. Qd2 {[%clk 0:02:47]}  b5 {[%clk 0:03:00]} 6. Bd3 {[%clk 0:02:44]}  Nd7 {[%clk 0:02:59]} 7. h4 {[%clk 0:02:42]}  h5 {[%clk 0:02:58]} 8. O-O-O {[%clk 0:02:36]}  Nb6 {[%clk 0:02:57]} 9. Nh3 {[%clk 0:02:35]}  Bxh3 {[%clk 0:02:56]} 10. Rxh3 {[%clk 0:02:34]}  Nf6 {[%clk 0:02:55]} 11. f4 {[%clk 0:02:27]}  Ng4 {[%clk 0:02:54]} 12. Bg1 {[%clk 0:02:26]}  Nc4 {[%clk 0:02:52]} 13. Bxc4 {[%clk 0:02:26]}  bxc4 {[%clk 0:02:52]} 14. Qe2 {[%clk 0:02:26]}  O-O {[%clk 0:02:42]} 15. Qxc4 {[%clk 0:02:26]}  c6 {[%clk 0:02:35]} 16. Qxc6 {[%clk 0:02:22]}  Qa5 {[%clk 0:02:34]} 17. Qa4 {[%clk 0:02:18]}  Qc7 {[%clk 0:02:33]} 18. Nd5 {[%clk 0:02:13]}  Qd8 {[%clk 0:02:25]} 19. Rb3 {[%clk 0:02:12]}  e6 {[%clk 0:02:24]} 20. Nb6 {[%clk 0:02:07]}  Ra7 {[%clk 0:02:23]} 21. g3 {[%clk 0:02:03]}  Qc7 {[%clk 0:02:17]} 22. d5 {[%clk 0:02:01]}  e5 {[%clk 0:02:14]} 23. Nc4 {[%clk 0:01:48]}  Raa8 {[%clk 0:02:11]} 24. Na5 {[%clk 0:01:45]}  exf4 {[%clk 0:02:07]} 25. gxf4 {[%clk 0:01:44]}  Qe7 {[%clk 0:02:07]} 26. Rh3 {[%clk 0:01:34]}  Qf6 {[%clk 0:02:03]} 27. e5 {[%clk 0:01:32]}  dxe5 {[%clk 0:01:59]} 28. Qc6 {[%clk 0:01:20]}  Qxf4+ {[%clk 0:01:57]} 29. Kb1 {[%clk 0:01:19]}  e4 {[%clk 0:01:54]} 30. d6 {[%clk 0:01:10]}  Rab8 {[%clk 0:01:50]} 31. Nb3 {[%clk 0:01:04]}  e3 {[%clk 0:01:46]} 32. Qf3 {[%clk 0:01:02]}  Qe5 {[%clk 0:01:37]} 33. c3 {[%clk 0:01:02]}  e2 {[%clk 0:01:35]} 34. Re1 {[%clk 0:01:02]}  Qxd6 {[%clk 0:01:35]} 35. Qxe2 {[%clk 0:00:59]}  Rbe8 {[%clk 0:01:33]} 36. Qxe8 {[%clk 0:00:58]}  Rxe8 {[%clk 0:01:33]} 37. Rxe8+ {[%clk 0:00:58]}  Kh7 {[%clk 0:01:33]} 38. Nd4 {[%clk 0:00:51]}  Bxd4 {[%clk 0:01:31]} 39. Bxd4 {[%clk 0:00:50]}  Qc6 {[%clk 0:01:30]} 40. Rh8# {[%clk 0:00:49]} 1-0